lending/lending_fUSD_20250303
["ID","MTS","AMOUNT","RATE_DAILY","PERIOD"]
[355210064,1741013434541,-2677.86,0.00014795,2]
[355210065,1741013434551,-1163.96,0.00014795,2]
[355210066,1741013434678,-500.0,0.00014795,2]
[355210067,1741013434690,-771.34,0.00014795,2]
[355210068,1741013434701,-960.99,0.00014795,2]
[355210069,1741013434711,-500.0,0.00014795,2]
[355210070,1741013434722,-975.66,0.00014795,2]
[355210071,1741013434733,-500.0,0.00014795,2]
[355210072,1741013434743,-1316.17,0.00014795,2]
[355210073,1741013434754,-4348.41,0.00014795,2]
[355210074,1741013434768,-627.04,0.00014795,2]
[355210075,1741013434779,-1358.93,0.00014795,2]
[355210076,1741013434792,-1232.44,0.00014795,2]
[355210077,1741013434802,-6181.39,0.00014795,2]
[355210078,1741013434814,-2009.44,0.00014795,2]
[355210079,1741013434826,-1581.15,0.00014795,2]
[355210080,1741013434836,-500.0,0.00014795,2]
[355210081,1741013434847,-1734.0,0.00014795,2]
[355210082,1741013434858,-5401.45,0.00014795,2]
[355210083,1741013434872,-7759.41,0.00014795,2]
[355210084,1741013434883,-1384.34,0.00014795,2]
[355210085,1741013434894,-895.5,0.00014795,2]
[355210086,1741013434905,-1797.89,0.00014795,2]
[355210087,1741013434915,-500.0,0.00014795,2]
[355210088,1741013434931,-590.42,0.00014795,2]
[355210089,1741013434942,-2596.45,0.00014795,2]
[355210090,1741013434953,-30572.48,0.00014795,2]
[355210091,1741013434963,-890.05,0.00014795,2]
[355210092,1741013434974,-1917.36,0.00014795,2]
[355210093,1741013434984,-522.54,0.00014795,2]
[355210094,1741013434995,-500.0,0.00014795,2]
[355210095,1741013435006,-1967.05,0.00014795,2]
[355210096,1741013435016,-670.82,0.00014795,2]
[355210097,1741013435026,-615.49,0.00014795,2]
[355210098,1741013435036,-6975.98,0.00014795,2]
[355210099,1741013435046,-2012.57,0.00014795,2]
[355210100,1741013435056,-6977.6,0.00014795,2]
[355210101,1741013435066,-735.73,0.00014795,2]
[355210102,1741013435076,-1597.67,0.00014795,2]
[355210103,1741013435086,-735.08,0.00014795,2]
[355210104,1741013435096,-6056.37,0.00014795,2]
[355210105,1741013435106,-1436.96,0.00014795,2]
[355210106,1741013435116,-1474.74,0.00014795,2]
[355210107,1741013435126,-648.04,0.00014795,2]
[355210108,1741013435135,-500.0,0.00014795,2]
[355210109,1741013435145,-1212.84,0.00014795,2]
[355210110,1741013435156,-3183.21,0.00014795,2]
[355210111,1741013435165,-1145.66,0.00014795,2]
[355210112,1741013435179,-994.58,0.00014795,2]
[355210113,1741013435189,-500.0,0.00014795,2]
[355210114,1741013435198,-28493.05,0.00014795,2]
[355210115,1741013435208,-706.59,0.00014795,2]
[355210116,1741013435218,-500.0,0.00014795,2]
[355210117,1741013435228,-1590.23,0.00014795,2]
[355210118,1741013435238,-2100.81,0.00014795,2]
[355210119,1741013435249,-922.94,0.00014795,2]
[355210120,1741013435259,-500.0,0.00014795,2]
[355210121,1741013435269,-1074.03,0.00014795,2]
[355210122,1741013435279,-500.0,0.00014795,2]
[355210123,1741013435289,-500.0,0.00014795,2]
[355210124,1741013435299,-500.0,0.00014795,2]
[355210125,1741013435308,-545.91595651,0.00014795,2]
[355210126,1741013435317,-500.0,0.00014795,2]
[355210127,1741013435328,-7490.46,0.00014795,2]
[355210128,1741013435337,-545.13,0.00014795,2]
[355210129,1741013435347,-976.78,0.00014795,2]
[355210130,1741013435356,-886.41,0.00014795,2]
[355210131,1741013435366,-500.0,0.00014795,2]
[355210132,1741013435376,-708.28,0.00014795,2]
[355210133,1741013435386,-2288.55,0.00014795,2]
[355210134,1741013435396,-3726.48,0.00014795,2]
[355210135,1741013435406,-836.75,0.00014795,2]
[355210136,1741013435416,-500.0,0.00014795,2]
[355210137,1741013435428,-13123.65,0.00014795,2]
[355210138,1741013435438,-500.0,0.00014795,2]
[355210139,1741013435448,-1000.0,0.00014795,2]
[355210140,1741013435457,-992.9,0.00014795,2]
[355210141,1741013435467,-18966.53,0.00014795,2]
[355210142,1741013435477,-8080.61,0.00014795,2]
[355210143,1741013435487,-1399.87,0.00014795,2]
[355210144,1741013435497,-1199.23,0.00014795,2]
[355210145,1741013435507,-565.73,0.00014795,2]
[355210146,1741013435516,-1145.41,0.00014795,2]
[355210147,1741013435526,-1169.95,0.00014795,2]
[355210148,1741013435535,-500.0,0.00014795,2]
[355210149,1741013435545,-500.0,0.00014795,2]
[355210150,1741013435555,-500.0,0.00014795,2]
[355210151,1741013435564,-612.94,0.00014795,2]
[355210152,1741013435574,-796.66,0.00014795,2]
[355210153,1741013435584,-500.0,0.00014795,2]
[355210154,1741013435594,-422.84097498,0.00014795,2]
[355210155,1741013435604,-915.22,0.00014795,2]
[355210156,1741013435613,-1243.42,0.00014795,2]
[355210157,1741013435623,-1116.48,0.00014795,2]
[355210158,1741013435633,-900.85,0.00014795,2]
[355210159,1741013435642,-500.0,0.00014795,2]
[355210160,1741013435652,-500.0,0.00014795,2]
[355210161,1741013435662,-500.0,0.00014795,2]
[355210162,1741013435671,-687.52,0.00014795,2]
[355210163,1741013435686,-1447.57,0.00014795,2]
[355210164,1741013435695,-500.0,0.00014796,2]
[355210165,1741013435705,-500.0,0.00014796,2]
[355210166,1741013435715,-500.0,0.00014796,2]
[355210167,1741013435725,-500.0,0.00014796,2]
[355210168,1741013435734,-500.0,0.00014796,2]
[355210169,1741013435744,-500.0,0.00014796,2]
[355210170,1741013435755,-542.31,0.00014796,2]
[355210171,1741013435765,-500.0,0.00014796,2]
[355210172,1741013435775,-500.0,0.00014796,2]
[355210173,1741013435789,-536.14884966,0.00014796,2]
[355210174,1741013435799,-500.0,0.00014796,2]
[355210175,1741013435808,-500.0,0.00014796,2]
[355210176,1741013435818,-500.0,0.00014796,2]
[355210177,1741013435827,-500.0,0.00014796,2]
[355210178,1741013435837,-500.0,0.00014796,2]
[355210179,1741013435847,-500.0,0.00014796,2]
[355210180,1741013435857,-519.67161918,0.00014796,2]
[355210181,1741013435867,-500.0,0.00014796,2]
[355210182,1741013435877,-553.89,0.00014796,2]
[355210183,1741013435886,-500.0,0.00014796,2]
[355210184,1741013435896,-500.0,0.00014796,2]
[355210185,1741013435906,-500.0,0.00014796,2]
[355210186,1741013435915,-655.86,0.00014796,2]
[355210187,1741013435927,-500.0,0.00014796,2]
[355210188,1741013435937,-500.0,0.00014796,2]
[355210189,1741013435946,-500.0,0.00014796,2]
[355210190,1741013435956,-634.45363184,0.00014796,2]
[355210191,1741013435965,-500.0,0.00014796,2]
[355210192,1741013435975,-500.0,0.00014796,2]
[355210193,1741013435985,-226.19921783,0.00014796,2]
[355210194,1741013435994,-500.0,0.00014796,2]
[355210195,1741013436004,-500.0,0.00014796,2]
[355210196,1741013436013,-500.0,0.00014796,2]
[355210197,1741013436023,-500.0,0.00014796,2]
[355210198,1741013436032,-521.84258859,0.00014796,2]
[355210199,1741013436041,-500.0,0.00014796,2]
[355210200,1741013436053,-500.0,0.00014796,2]
[355210201,1741013436062,-500.0,0.00014796,2]
[355210202,1741013436072,-636.23,0.00014796,2]
[355210203,1741013436081,-605.71,0.00014796,2]
[355210204,1741013436091,-500.0,0.00014796,2]
[355210205,1741013436100,-500.0,0.00014796,2]
[355210206,1741013436110,-500.0,0.00014796,2]
[355210207,1741013436120,-500.0,0.00014796,2]
[355210208,1741013436130,-500.0,0.00014796,2]
[355210209,1741013436139,-500.0,0.00014796,2]
[355210210,1741013436149,-500.0,0.00014796,2]
[355210211,1741013436159,-500.0,0.00014796,2]
[355210212,1741013436169,-500.0,0.00014796,2]
[355210213,1741013436282,-500.0,0.00014796,2]
[355210214,1741013436304,-500.0,0.00014796,2]
[355210215,1741013436314,-500.0,0.00014796,2]
[355210216,1741013436324,-500.0,0.00014796,2]
[355210217,1741013436334,-500.0,0.00014796,2]
[355210218,1741013436344,-500.0,0.00014796,2]
[355210219,1741013436355,-500.0,0.00014796,2]
[355210220,1741013436365,-500.0,0.00014796,2]
[355210221,1741013436375,-595.62,0.00014796,2]
[355210222,1741013436384,-500.0,0.00014796,2]
[355210223,1741013436394,-500.0,0.00014796,2]
[355210224,1741013436404,-500.0,0.00014796,2]
[355210225,1741013436414,-500.0,0.00014796,2]
[355210226,1741013436424,-500.0,0.00014796,2]
[355210227,1741013436437,-618.17,0.00014796,2]
[355210228,1741013436447,-500.0,0.00014796,2]
[355210229,1741013436456,-500.0,0.00014796,2]
[355210230,1741013436466,-500.0,0.00014796,2]
[355210231,1741013436476,-500.0,0.00014796,2]
[355210232,1741013436486,-673.99,0.00014796,2]
[355210233,1741013436496,-500.0,0.00014796,2]
[355210234,1741013436506,-524.88932602,0.00014796,2]
[355210235,1741013436515,-500.0,0.00014796,2]
[355210236,1741013436525,-500.0,0.00014796,2]
[355210237,1741013436535,-500.0,0.00014796,2]
[355210238,1741013436545,-500.0,0.00014796,2]
[355210239,1741013436555,-500.0,0.00014796,2]
[355210240,1741013436570,-500.0,0.00014796,2]
[355210241,1741013436581,-500.0,0.00014796,2]
[355210242,1741013436591,-500.0,0.00014796,2]
[355210243,1741013436602,-500.0,0.00014796,2]
[355210244,1741013436612,-500.0,0.00014796,2]
[355210245,1741013436622,-518.97444973,0.00014796,2]
[355210246,1741013436634,-632.73048689,0.00014796,2]
[355210247,1741013436645,-1046.95,0.00014796,2]
[355210248,1741013436655,-500.0,0.00014796,2]
[355210249,1741013436666,-623.73836823,0.00014796,2]
[355210250,1741013436679,-500.0,0.00014796,2]
[355210251,1741013436689,-500.0,0.00014796,2]
[355210252,1741013436700,-500.0,0.00014796,2]
[355210253,1741013436710,-500.0,0.00014796,2]
[355210254,1741013436720,-768.4,0.00014796,2]
[355210255,1741013436730,-500.0,0.00014796,2]
[355210256,1741013436740,-544.10020596,0.00014796,2]
[355210257,1741013436750,-500.0,0.00014796,2]
[355210258,1741013436764,-137.81535793,0.00014796,2]
[355210303,1741013437497,-362.18464207,0.00014796,2]
[355210305,1741013437507,-500.0,0.00014796,2]
[355210308,1741013437516,-500.0,0.00014796,2]
[355210310,1741013437526,-795.6,0.00014796,2]
[355210324,1741013437535,-500.0,0.00014796,2]
[355210325,1741013437762,-500.0,0.00014796,2]
[355210326,1741013437773,-500.0,0.00014796,2]
[355210327,1741013437788,-597.76,0.00014796,2]
[355210328,1741013437799,-1321.62,0.00014796,2]
[355210329,1741013437809,-500.0,0.00014796,2]
[355210330,1741013437819,-500.0,0.00014796,2]
[355210331,1741013437829,-500.0,0.00014796,2]
[355210332,1741013437839,-500.0,0.00014796,2]
[355210333,1741013437850,-500.6,0.00014796,2]
[355210334,1741013437860,-500.0,0.00014796,2]
[355210335,1741013437870,-500.0,0.00014796,2]
[355210336,1741013437880,-500.0,0.00014796,2]
[355210337,1741013437890,-500.0,0.00014796,2]
[355210338,1741013437901,-500.0,0.00014796,2]
[355210339,1741013437911,-500.0,0.00014796,2]
[355210340,1741013437921,-500.0,0.00014796,2]
[355210341,1741013437934,-500.0,0.00014796,2]
[355210342,1741013437944,-500.0,0.00014796,2]
[355210343,1741013437954,-500.0,0.00014796,2]
[355210344,1741013437965,-500.0,0.00014796,2]
[355210345,1741013437975,-215.06440793,0.00014796,2]
[355210383,1741013438916,-2800.39001932,0.00014696,2]
[355210384,1741013438926,-318.45310178,0.00014696,2]
[355210385,1741013438939,-500.0,0.00014795,2]
[355210386,1741013438949,-343.30559207,0.00014796,2]
[355210387,1741013438959,-500.0,0.00014796,2]
[355210388,1741013438969,-500.0,0.00014796,2]
[355210389,1741013438978,-500.0,0.00014796,2]
[355210390,1741013438988,-629.24,0.00014796,2]
[355210391,1741013438998,-500.0,0.00014796,2]
[355210392,1741013439008,-500.0,0.00014796,2]
[355210393,1741013439017,-757.92,0.00014796,2]
[355210394,1741013439027,-500.0,0.00014796,2]
[355210395,1741013439037,-385.89702936,0.00014796,2]
[355210396,1741013439046,-500.0,0.00014796,2]
[355210397,1741013439056,-500.0,0.00014796,2]
[355210398,1741013439066,-537.08265954,0.00014796,2]
[355210399,1741013439076,-500.0,0.00014796,2]
[355210400,1741013439086,-500.0,0.00014796,2]
[355210401,1741013439096,-758.11,0.00014796,2]
[355210402,1741013439106,-673.61,0.00014796,2]
[355210403,1741013439115,-500.0,0.00014796,2]
[355210404,1741013439125,-500.0,0.00014796,2]
[355210405,1741013439135,-500.0,0.00014796,2]
[355210406,1741013439145,-364.10711461,0.00014796,2]
[355210407,1741013439154,-574.59,0.00014796,2]
[355210408,1741013439163,-500.0,0.00014796,2]
[355210409,1741013439172,-525.23831059,0.00014796,2]
[355210410,1741013439184,-500.0,0.00014796,2]
[355210411,1741013439194,-500.0,0.00014796,2]
[355210412,1741013439203,-589.79398814,0.00014796,2]
[355210413,1741013439212,-500.0,0.00014796,2]
[355210414,1741013439222,-500.0,0.00014796,2]
[355210415,1741013439231,-179.50547837,0.00014796,2]
[355210416,1741013439241,-500.0,0.00014796,2]
[355210417,1741013439250,-649.93,0.00014796,2]
[355210418,1741013439259,-500.0,0.00014796,2]
[355210419,1741013439268,-500.0,0.00014796,2]
[355210420,1741013439278,-500.0,0.00014796,2]
[355210421,1741013439288,-500.0,0.00014796,2]
[355210422,1741013439297,-500.0,0.00014796,2]
[355210423,1741013439306,-591.16,0.00014796,2]
[355210424,1741013439316,-760.4,0.00014796,2]
[355210425,1741013439325,-500.0,0.00014796,2]
[355210426,1741013439334,-500.0,0.00014796,2]
[355210427,1741013439344,-500.0,0.00014796,2]
[355210428,1741013439353,-500.0,0.00014796,2]
[355210429,1741013439362,-500.0,0.00014796,2]
[355210430,1741013439371,-500.0,0.00014796,2]
[355210431,1741013439381,-500.0,0.00014796,2]
[355210432,1741013439390,-500.0,0.00014796,2]
[355210433,1741013439399,-500.0,0.00014796,2]
[355210434,1741013439409,-500.0,0.00014796,2]
[355210435,1741013439419,-956.98,0.00014796,2]
[355210436,1741013439430,-500.0,0.00014796,2]
[355210437,1741013439439,-500.0,0.00014796,2]
[355210438,1741013439450,-600.63,0.00014796,2]
[355210439,1741013439460,-657.06,0.00014796,2]
[355210440,1741013439470,-500.0,0.00014796,2]
[355210441,1741013439479,-500.0,0.00014796,2]
[355210442,1741013439488,-500.0,0.00014796,2]
[355210443,1741013439498,-640.6,0.00014796,2]
[355210444,1741013439507,-500.0,0.00014796,2]
[355210445,1741013439517,-500.0,0.00014796,2]
[355210446,1741013439526,-512.87,0.00014796,2]
[355210447,1741013439536,-500.0,0.00014796,2]
[355210449,1741013439546,-522.61,0.00014796,2]
[355210450,1741013439556,-1084.38,0.00014796,2]
[355210451,1741013439565,-500.0,0.00014796,2]
[355210452,1741013439575,-844.1,0.00014796,2]
[355210453,1741013439584,-500.0,0.00014796,2]
[355210454,1741013439594,-500.0,0.00014796,2]
[355210455,1741013439603,-500.0,0.00014796,2]
[355210456,1741013439613,-665.18,0.00014796,2]
[355210457,1741013439623,-500.0,0.00014796,2]
[355210458,1741013439634,-500.0,0.00014796,2]
[355210459,1741013439644,-681.11,0.00014796,2]
[355210460,1741013439653,-537.49,0.00014796,2]
[355210461,1741013439663,-500.0,0.00014796,2]
[355210462,1741013439673,-500.0,0.00014796,2]
[355210463,1741013439685,-500.0,0.00014796,2]
[355210464,1741013439695,-586.8,0.00014796,2]
[355210465,1741013439704,-523.42,0.00014796,2]
[355210466,1741013439714,-500.0,0.00014796,2]
[355210467,1741013439724,-500.0,0.00014796,2]
[355210468,1741013439734,-500.0,0.00014796,2]
[355210469,1741013439744,-500.0,0.00014796,2]
[355210470,1741013439755,-681.93,0.00014796,2]
[355210471,1741013439765,-500.0,0.00014796,2]
[355210472,1741013439778,-500.0,0.00014796,2]
[355210473,1741013439789,-500.0,0.00014796,2]
[355210474,1741013439799,-500.0,0.00014796,2]
[355210475,1741013439808,-500.0,0.00014796,2]
[355210476,1741013439819,-500.0,0.00014796,2]
[355210477,1741013439829,-500.0,0.00014796,2]
[355210478,1741013439840,-1054.68,0.00014796,2]
[355210479,1741013439849,-500.0,0.00014796,2]
[355210480,1741013439861,-500.0,0.00014796,2]
[355210481,1741013439871,-500.0,0.00014796,2]
[355210482,1741013439881,-500.0,0.00014796,2]
[355210483,1741013439891,-500.0,0.00014796,2]
[355210484,1741013439902,-500.0,0.00014796,2]
[355210485,1741013439911,-500.0,0.00014796,2]
[355210486,1741013439922,-500.0,0.00014796,2]
[355210487,1741013439935,-1306.06,0.00014796,2]
[355210488,1741013439945,-648.14,0.00014796,2]
[355210489,1741013439954,-500.0,0.00014796,2]
[355210490,1741013439964,-500.0,0.00014796,2]
[355210491,1741013439974,-500.0,0.00014796,2]
[355210492,1741013439983,-815.63,0.00014796,2]
[355210493,1741013439993,-500.0,0.00014796,2]
[355210494,1741013440003,-500.0,0.00014796,2]
[355210495,1741013440012,-500.0,0.00014796,2]
[355210496,1741013440160,-500.0,0.00014796,2]
[355210497,1741013440170,-500.0,0.00014796,2]
[355210498,1741013440183,-500.0,0.00014796,2]
[355210499,1741013440192,-500.0,0.00014796,2]
[355210500,1741013440203,-570.24,0.00014796,2]
[355210501,1741013440212,-605.36,0.00014796,2]
[355210502,1741013440222,-500.0,0.00014796,2]
[355210503,1741013440233,-500.0,0.00014796,2]
[355210504,1741013440244,-525.7931886,0.00014796,2]
[355210505,1741013440255,-614.24,0.00014796,2]
[355210506,1741013440265,-500.0,0.00014796,2]
[355210507,1741013440275,-500.0,0.00014796,2]
[355210508,1741013440284,-500.0,0.00014796,2]
[355210509,1741013440294,-500.0,0.00014796,2]
[355210510,1741013440304,-525.08749554,0.00014796,2]
[355210511,1741013440313,-500.0,0.00014796,2]
[355210512,1741013440323,-500.0,0.00014796,2]
[355210513,1741013440332,-500.0,0.00014796,2]
[355210514,1741013440341,-500.0,0.00014796,2]
[355210515,1741013440351,-500.0,0.00014796,2]
[355210516,1741013440361,-500.0,0.00014796,2]
[355210517,1741013440370,-500.0,0.00014796,2]
[355210518,1741013440380,-500.0,0.00014796,2]
[355210519,1741013440390,-500.0,0.00014796,2]
[355210520,1741013440399,-500.0,0.00014796,2]
[355210521,1741013440409,-500.0,0.00014796,2]
[355210522,1741013440419,-500.0,0.00014796,2]
[355210523,1741013440429,-500.0,0.00014796,2]
[355210524,1741013440441,-500.0,0.00014796,2]
[355210525,1741013440450,-688.5,0.00014796,2]
[355210526,1741013440460,-500.0,0.00014796,2]
[355210527,1741013440470,-500.0,0.00014796,2]
[355210528,1741013440480,-861.33,0.00014796,2]
[355210529,1741013440490,-500.0,0.00014796,2]
[355210530,1741013440500,-500.0,0.00014796,2]
[355210531,1741013440509,-500.0,0.00014796,2]
[355210532,1741013440519,-506.14,0.00014796,2]
[355210533,1741013440529,-500.0,0.00014796,2]
[355210534,1741013440539,-500.0,0.00014796,2]
[355210535,1741013440548,-500.0,0.00014796,2]
[355210536,1741013440558,-500.0,0.00014796,2]
[355210537,1741013440567,-500.0,0.00014796,2]
[355210538,1741013440577,-500.0,0.00014796,2]
[355210539,1741013440586,-525.97468504,0.00014796,2]
[355210540,1741013440596,-808.58,0.00014796,2]
[355210541,1741013440605,-500.0,0.00014796,2]
[355210542,1741013440614,-500.0,0.00014796,2]
[355210543,1741013440624,-522.51036416,0.00014796,2]
[355210544,1741013440634,-523.51479319,0.00014796,2]
[355210545,1741013440643,-500.0,0.00014796,2]
[355210546,1741013440652,-500.0,0.00014796,2]
[355210547,1741013440662,-500.0,0.00014796,2]
[355210548,1741013440671,-1853.38,0.00014796,2]
[355210549,1741013440682,-500.0,0.00014796,2]
[355210550,1741013440692,-500.0,0.00014796,2]
[355210551,1741013440702,-500.0,0.00014796,2]
[355210552,1741013440712,-500.0,0.00014796,2]
[355210553,1741013440722,-500.0,0.00014796,2]
[355210554,1741013440731,-500.0,0.00014796,2]
[355210555,1741013440742,-500.0,0.00014796,2]
[355210556,1741013440751,-500.0,0.00014796,2]
[355210557,1741013440765,-500.0,0.00014796,2]
[355210558,1741013440774,-500.0,0.00014796,2]
[355210559,1741013440784,-500.0,0.00014796,2]
[355210560,1741013440793,-500.0,0.00014796,2]
[355210561,1741013440803,-500.0,0.00014796,2]
[355210562,1741013440814,-500.0,0.00014796,2]
[355210563,1741013440824,-425.80538284,0.00014796,2]
[355210564,1741013440834,-500.0,0.00014796,2]
[355210565,1741013440847,-500.0,0.00014796,2]
[355210566,1741013440856,-500.0,0.00014796,2]
[355210567,1741013440866,-500.0,0.00014796,2]
[355210568,1741013440875,-500.0,0.00014796,2]
[355210569,1741013440885,-500.0,0.00014796,2]
[355210570,1741013440895,-500.0,0.00014796,2]
[355210571,1741013440904,-500.0,0.00014796,2]
[355210572,1741013440914,-732.4,0.00014796,2]
[355210573,1741013440924,-500.0,0.00014796,2]
[355210574,1741013440935,-552.46,0.00014796,2]
[355210575,1741013440945,-500.0,0.00014796,2]
[355210576,1741013440956,-524.38445938,0.00014796,2]
[355210577,1741013440965,-500.0,0.00014796,2]
[355210578,1741013440975,-500.0,0.00014796,2]
[355210579,1741013440985,-500.0,0.00014796,2]
[355210580,1741013441001,-500.0,0.00014796,2]
[355210581,1741013441016,-378.35152797,0.00014796,2]
[355210582,1741013441027,-500.0,0.00014796,2]
[355210583,1741013441037,-753.27,0.00014796,2]
[355210584,1741013441048,-500.0,0.00014796,2]
[355210585,1741013441058,-500.0,0.00014796,2]
[355210586,1741013441069,-792.18,0.00014796,2]
[355210587,1741013441079,-500.0,0.00014796,2]
[355210588,1741013441089,-522.51209667,0.00014796,2]
[355210589,1741013441099,-500.0,0.00014796,2]
[355210590,1741013441109,-500.0,0.00014796,2]
[355210591,1741013441119,-513.92,0.00014796,2]
[355210592,1741013441130,-500.0,0.00014796,2]
[355210593,1741013441140,-659.34,0.00014796,2]
[355210594,1741013441150,-500.0,0.00014796,2]
[355210595,1741013441161,-500.0,0.00014797,2]
[355210596,1741013441171,-500.0,0.00014797,2]
[355210597,1741013441187,-500.0,0.00014797,2]
[355210598,1741013441198,-500.0,0.00014797,2]
[355210599,1741013441208,-645.21,0.00014797,2]
[355210600,1741013441219,-500.0,0.00014797,2]
[355210601,1741013441230,-500.0,0.00014797,2]
[355210602,1741013441240,-500.0,0.00014797,2]
[355210603,1741013441251,-500.0,0.00014797,2]
[355210604,1741013441261,-2023.63816098,0.000148,2]
[355210605,1741013441320,-284.4,0.00014796,2]
[355210606,1741013441332,-277.39,0.00014796,2]
[355210607,1741013441343,-4299.41,0.000148,2]
[355210608,1741013441675,-500.0,0.00014794,2]
[355210609,1741013441689,-500.0,0.00014795,2]
[355210610,1741013441700,-823.15736,0.000148,2]
[355210611,1741013441717,-2560.38852992,0.000148,2]
[355210612,1741013441729,-1401.6,0.000148,2]
[355210613,1741013441803,-3128.99863341,0.000148,2]
[355210614,1741013441814,-406.59733207,0.00014809,2]
[355210615,1741013441825,-860.18545948,0.00014809,2]
[355210616,1741013441836,-406.59733207,0.00014832,2]
[355210617,1741013441846,-860.18545948,0.00014832,2]
[355210618,1741013441858,-135.66619157,0.00014849,2]
[355210619,1741013441871,-364.33380843,0.00014849,2]
[355210620,1741013441882,-340.43566,0.0001485,2]
[355210621,1741013441893,-406.59733207,0.00014854,2]
[355210622,1741013441905,-860.18545948,0.00014855,2]
[355210623,1741013441916,-406.59733207,0.00014877,2]
[355210624,1741013441927,-860.18545948,0.00014877,2]
[355210625,1741013441941,-500.0,0.0001488,2]
[355210626,1741013441953,-512.428,0.00014886,2]
[355210627,1741013441963,-191.0,0.000149,3]
[355210628,1741013441973,-191.0,0.000149,2]
[355210629,1741013441983,-193.15,0.000149,3]
[355210630,1741013441993,-192.1292153,0.000149,2]
[355210631,1741013442003,-164.85897035,0.000149,2]
[355210632,1741013442013,-860.18545948,0.000149,2]
[355210633,1741013442023,-406.59733207,0.000149,2]
[355210634,1741013442033,-164.60464154,0.000149,2]
[355210635,1741013442043,-190.9262066,0.000149,2]
[355210636,1741013442057,-183.93124936,0.000149,2]
[355210637,1741013442067,-608.358,0.00014957,2]
[355210638,1741013442077,-570.0,0.00014957,2]
[355210639,1741013442087,-1583.0,0.00014957,2]
[355210640,1741013442097,-640.0,0.00014957,2]
[355210641,1741013442108,-3928.0,0.00014957,2]
[355210642,1741013442118,-150.0,0.00014957,2]
[355210643,1741013442128,-1112.0,0.00014957,2]
[355210644,1741013442138,-178.183,0.00014957,2]
[355210645,1741013442148,-150.0,0.00014957,2]
[355210646,1741013442158,-266.94047899,0.00014973,2]
[355210683,1741013443655,-613.25,0.00014794,2]
[355210684,1741013443665,-500.0,0.00014794,2]
[355210685,1741013443674,-500.0,0.00014794,2]
[355210686,1741013443687,-233.05952101,0.00014973,2]
[355210687,1741013443697,-474.59550329,0.00014989,2]
[355210688,1741013443708,-6839.63548595,0.0001499,2]
[355210689,1741013443720,-153919.14234145,0.0001499,2]
[355210690,1741013443729,-28091.02099177,0.00014997,2]
[355210721,1741013444110,-1261.33,0.00014795,2]
[355210723,1741013444120,-579.31,0.00014997,2]
[355210767,1741013445475,-500.0,0.00014795,2]
[355210768,1741013445486,-750.16,0.00014795,2]
[355210769,1741013445496,-2254.14950812,0.00014997,2]
[355210770,1741013445553,-529.05276473,0.00014997,2]
[355210771,1741013445734,-363.63939512,0.00014794,2]
[355210772,1741013445747,-136.36060488,0.00014794,2]